fUSD/lending_fUSD_20250708
["ID","MTS","AMOUNT","RATE_DAILY","PERIOD"]
[370309737,1751946647912,-500.0,0.00030173,5]
[370309738,1751946647922,-174.93951598,0.00030173,2]
[370309739,1751946647932,-3671.073691,0.00030223,16]
[370309740,1751946647942,-735.42732767,0.00030238,2]
[370309741,1751946647951,-202.52040686,0.0003031,2]
[370309742,1751946647961,-174.93951598,0.0003031,2]
[370309743,1751946647970,-503.0,0.00030338,6]
[370309744,1751946647980,-735.42732767,0.00030339,2]
[370309745,1751946647990,-2000.0,0.000304,2]
[370309746,1751946648000,-229.54315459,0.000304,7]
[370309747,1751946648011,-500.0,0.000304,7]
[370309748,1751946648020,-1011.27,0.000304,7]
[370309749,1751946648031,-573.65,0.00030408,7]
[370309750,1751946648041,-152.778447,0.00030409,7]
[370309751,1751946648051,-460.0,0.00030409,7]
[370309752,1751946648061,-586.96765436,0.00030409,7]
[370309753,1751946648072,-460.0,0.00030409,7]
[370309754,1751946648086,-490.0,0.00030409,7]
[370309755,1751946648096,-460.0,0.00030409,7]
[370309756,1751946648107,-460.0,0.00030409,7]
[370309757,1751946648117,-460.0,0.00030409,7]
[370309758,1751946648127,-490.0,0.00030409,7]
[370309759,1751946648137,-460.0,0.00030409,7]
[370309760,1751946648147,-460.0,0.00030409,7]
[370309761,1751946648158,-460.0,0.00030409,7]
[370309762,1751946648168,-460.0,0.00030409,7]
[370309763,1751946648178,-460.0,0.00030409,7]
[370309764,1751946648188,-460.0,0.00030409,7]
[370309765,1751946648199,-490.0,0.00030409,7]
[370309766,1751946648209,-490.0,0.00030409,7]
[370309767,1751946648219,-490.0,0.00030409,7]
[370309768,1751946648229,-490.0,0.00030409,7]
[370309769,1751946648240,-460.0,0.00030409,7]
[370309770,1751946648250,-490.0,0.00030409,7]
[370309771,1751946648261,-460.0,0.00030409,7]
[370309772,1751946648272,-490.0,0.00030409,7]
[370309773,1751946648282,-460.0,0.00030409,7]
[370309774,1751946648292,-460.0,0.00030409,7]
[370309775,1751946648302,-460.0,0.00030409,7]
[370309776,1751946648313,-460.0,0.00030409,7]
[370309777,1751946648323,-460.0,0.00030409,7]
[370309778,1751946648333,-460.0,0.00030409,7]
[370309779,1751946648344,-460.0,0.00030409,7]
[370309780,1751946648355,-500.0,0.00030409,7]
[370309781,1751946648366,-573.65,0.00030409,7]
[370309782,1751946648376,-500.0,0.00030409,7]
[370309783,1751946648387,-1011.27,0.00030409,7]
[370309784,1751946648398,-150.0,0.0003041,7]
[370309785,1751946648408,-150.0,0.0003041,7]
[370309786,1751946648418,-500.0,0.0003041,7]
[370309787,1751946648429,-150.0,0.0003041,7]
[370309788,1751946648439,-150.0,0.0003041,7]
[370309789,1751946648681,-500.0,0.0003041,7]
[370309790,1751946648691,-252.74833467,0.0003041,7]
[370309791,1751946648701,-500.0,0.0003041,7]
[370309792,1751946648711,-500.0,0.0003041,7]
[370309793,1751946648721,-150.0,0.0003041,7]
[370309794,1751946648731,-500.0,0.0003041,7]
[370309795,1751946648741,-500.0,0.0003041,7]
[370309796,1751946648751,-150.0,0.0003041,7]
[370309797,1751946648762,-150.48390243,0.0003041,7]
[370309798,1751946648772,-150.0,0.0003041,2]
[370309799,1751946648782,-1052.0,0.0003041,7]
[370309800,1751946648792,-500.0,0.0003041,2]
[370309801,1751946648802,-500.0,0.0003041,60]
[370309802,1751946648812,-500.0,0.0003041,7]
[370309803,1751946648822,-500.0,0.0003041,7]
[370309804,1751946648832,-597.0,0.0003041,7]
[370309805,1751946648842,-151.0,0.0003041,7]
[370309806,1751946648852,-263.37169839,0.0003041,7]
[370309807,1751946648862,-460.0,0.0003041,7]
[370309808,1751946648872,-1000.0,0.0003041,7]
[370309809,1751946648882,-152.42579,0.0003041,7]
[370309810,1751946648892,-304.469095,0.0003041,7]
[370309811,1751946648902,-270.207308,0.0003041,7]
[370309812,1751946648912,-386.145169,0.0003041,7]
[370309813,1751946648922,-460.0,0.0003041,7]
[370309814,1751946648932,-490.0,0.0003041,7]
[370309815,1751946648942,-460.0,0.0003041,7]
[370309816,1751946648953,-490.0,0.0003041,7]
[370309817,1751946648962,-460.0,0.0003041,7]
[370309818,1751946648972,-460.0,0.0003041,7]
[370309819,1751946648982,-593.5,0.0003041,7]
[370309820,1751946648992,-460.0,0.0003041,7]
[370309821,1751946649002,-460.0,0.0003041,7]
[370309822,1751946649012,-460.0,0.0003041,7]
[370309823,1751946649021,-460.0,0.0003041,7]
[370309824,1751946649031,-460.0,0.0003041,7]
[370309825,1751946649041,-460.0,0.0003041,7]
[370309826,1751946649050,-460.0,0.0003041,7]
[370309827,1751946649060,-460.0,0.0003041,7]
[370309828,1751946649070,-520.0,0.0003041,7]
[370309829,1751946649079,-460.0,0.0003041,7]
[370309830,1751946649089,-260.88359797,0.0003041,7]
[370309831,1751946649106,-199.11640203,0.0003041,7]
[370309832,1751946649115,-460.0,0.0003041,7]
[370309833,1751946649124,-460.0,0.0003041,7]
[370309834,1751946649134,-460.0,0.0003041,7]
[370309835,1751946649144,-520.0,0.0003041,7]
[370309836,1751946649153,-460.0,0.0003041,7]
[370309837,1751946649163,-460.0,0.0003041,7]
[370309838,1751946649173,-137.59392403,0.0003041,7]
[370309839,1751946649275,-322.40607597,0.0003041,7]
[370309840,1751946649285,-460.0,0.0003041,7]
[370309841,1751946649295,-460.0,0.0003041,7]
[370309842,1751946649305,-460.0,0.0003041,7]
[370309843,1751946649315,-460.0,0.0003041,7]
[370309844,1751946649324,-520.0,0.0003041,7]
[370309845,1751946649334,-230.45548778,0.0003041,7]
[370309846,1751946649344,-460.0,0.0003041,7]
[370309847,1751946649354,-460.0,0.0003041,7]
[370309848,1751946649364,-466.20072017,0.0003041,7]
[370309849,1751946649374,-151.217209,0.0003041,7]
[370309850,1751946649383,-460.0,0.0003041,7]
[370309851,1751946649393,-460.0,0.0003041,7]
[370309852,1751946649404,-460.0,0.0003041,7]
[370309853,1751946649414,-460.0,0.0003041,7]
[370309854,1751946649424,-487.2538017,0.0003041,7]
[370309855,1751946649434,-174.94414342,0.0003041,7]
[370309856,1751946649443,-460.0,0.0003041,7]
[370309857,1751946649453,-460.0,0.0003041,7]
[370309858,1751946649463,-151.0,0.0003041,7]
[370309859,1751946649474,-460.0,0.0003041,7]
[370309860,1751946649484,-725.7,0.0003041,7]
[370309861,1751946649494,-460.0,0.0003041,7]
[370309862,1751946649503,-460.0,0.0003041,7]
[370309863,1751946649513,-460.0,0.0003041,7]
[370309864,1751946649523,-739.92,0.0003041,7]
[370309865,1751946649534,-460.0,0.0003041,7]
[370309866,1751946649544,-460.0,0.0003041,7]
[370309867,1751946649555,-460.0,0.0003041,7]
[370309868,1751946649565,-460.0,0.0003041,7]
[370309869,1751946649575,-460.0,0.0003041,7]
[370309870,1751946649585,-460.0,0.0003041,7]
[370309871,1751946649595,-460.0,0.0003041,7]
[370309872,1751946649605,-460.0,0.0003041,7]
[370309873,1751946649614,-460.0,0.0003041,7]
[370309874,1751946649624,-221.98,0.0003041,7]
[370309875,1751946649633,-648.43,0.0003041,7]
[370309876,1751946649644,-460.0,0.0003041,7]
[370309877,1751946649657,-487.27,0.0003041,7]
[370309878,1751946649666,-460.0,0.0003041,7]
[370309879,1751946649676,-291.623184,0.0003041,7]
[370309880,1751946649685,-460.0,0.0003041,7]
[370309881,1751946649695,-677.04,0.0003041,7]
[370309882,1751946649704,-496.58707676,0.0003041,7]
[370309883,1751946649713,-151.0,0.0003041,7]
[370309884,1751946649722,-460.0,0.0003041,7]
[370309885,1751946649732,-460.0,0.0003041,7]
[370309886,1751946649743,-460.0,0.0003041,7]
[370309887,1751946649752,-460.0,0.0003041,7]
[370309888,1751946649762,-151.0,0.0003041,7]
[370309889,1751946649771,-622.46,0.0003041,7]
[370309890,1751946649783,-460.0,0.0003041,7]
[370309891,1751946649793,-460.0,0.0003041,7]
[370309892,1751946649802,-460.0,0.0003041,7]
[370309893,1751946649813,-460.0,0.0003041,7]
[370309894,1751946649822,-460.0,0.0003041,7]
[370309895,1751946649832,-460.0,0.0003041,7]
[370309896,1751946649841,-460.0,0.0003041,7]
[370309897,1751946649851,-460.0,0.0003041,7]
[370309898,1751946649860,-460.0,0.0003041,7]
[370309899,1751946649870,-151.0,0.0003041,7]
[370309900,1751946649879,-460.0,0.0003041,7]
[370309901,1751946649889,-460.0,0.0003041,7]
[370309902,1751946649898,-460.0,0.0003041,7]
[370309903,1751946649907,-460.0,0.0003041,7]
[370309904,1751946649917,-460.0,0.0003041,7]
[370309905,1751946649927,-734.68,0.0003041,7]
[370309906,1751946649936,-460.0,0.0003041,7]
[370309907,1751946649945,-808.0,0.0003041,7]
[370309908,1751946649954,-460.0,0.0003041,7]
[370309909,1751946649964,-460.0,0.0003041,7]
[370309910,1751946649973,-460.0,0.0003041,7]
[370309911,1751946649983,-460.0,0.0003041,7]
[370309912,1751946649992,-460.0,0.0003041,7]
[370309913,1751946650002,-460.0,0.0003041,7]
[370309914,1751946650011,-460.0,0.0003041,7]
[370309915,1751946650021,-460.0,0.0003041,7]
[370309916,1751946650031,-460.0,0.0003041,7]
[370309917,1751946650040,-182.367937,0.0003041,7]
[370309918,1751946650050,-460.0,0.0003041,7]
[370309919,1751946650060,-564.92,0.0003041,7]
[370309920,1751946650069,-460.0,0.0003041,7]
[370309921,1751946650079,-460.0,0.0003041,7]
[370309922,1751946650088,-460.0,0.0003041,7]
[370309923,1751946650098,-460.0,0.0003041,7]
[370309924,1751946650107,-460.0,0.0003041,7]
[370309925,1751946650116,-460.0,0.0003041,7]
[370309926,1751946650126,-735.42,0.0003041,7]
[370309927,1751946650139,-460.0,0.0003041,7]
[370309928,1751946650149,-460.0,0.0003041,7]
[370309929,1751946650159,-460.0,0.0003041,7]
[370309930,1751946650169,-460.0,0.0003041,7]
[370309931,1751946650179,-460.0,0.0003041,7]
[370309932,1751946650190,-813.59,0.0003041,7]
[370309933,1751946650200,-677.3,0.0003041,7]
[370309934,1751946650212,-460.0,0.0003041,7]
[370309935,1751946650223,-460.0,0.0003041,7]
[370309936,1751946650233,-460.0,0.0003041,7]
[370309937,1751946650243,-283.60935555,0.0003041,7]
[370309938,1751946650260,-176.39064445,0.0003041,7]
[370309939,1751946650270,-460.0,0.0003041,7]
[370309940,1751946650279,-460.0,0.0003041,7]
[370309941,1751946650290,-616.63,0.0003041,7]
[370309942,1751946650300,-460.0,0.0003041,7]
[370309943,1751946650311,-151.0,0.0003041,7]
[370309944,1751946650322,-460.0,0.0003041,7]
[370309945,1751946650333,-519.98,0.0003041,7]
[370309946,1751946650344,-460.0,0.0003041,7]
[370309947,1751946650353,-55.19672769,0.0003041,7]
[370309948,1751946650365,-404.80327231,0.0003041,7]
[370309949,1751946650374,-520.73,0.0003041,7]
[370309950,1751946650383,-325.03399051,0.0003041,7]
[370309951,1751946650394,-134.96600949,0.0003041,7]
[370309952,1751946650403,-151.0,0.0003041,7]
[370309953,1751946650413,-174.03399051,0.0003041,7]
[370309954,1751946650817,-460.0,0.00030136,7]
[370309955,1751946650826,-539.95480539,0.0003041,7]
[370309956,1751946650838,-307.3312041,0.0003041,7]
[370309957,1751946650847,-298.37691855,0.0003041,7]
[370309958,1751946650860,-161.62308145,0.0003041,7]
[370309959,1751946650869,-559.66,0.0003041,7]
[370309960,1751946650879,-460.0,0.0003041,7]
[370309961,1751946650889,-460.0,0.0003041,7]
[370309962,1751946650898,-893.84,0.0003041,7]
[370309963,1751946650908,-460.0,0.0003041,7]
[370309964,1751946650917,-460.0,0.0003041,7]
[370309965,1751946650926,-460.0,0.0003041,7]
[370309966,1751946650936,-494.88,0.0003041,7]
[370309967,1751946651001,-151.0,0.0003041,7]
[370309968,1751946651010,-460.0,0.0003041,7]
[370309969,1751946651019,-460.0,0.0003041,7]
[370309970,1751946651029,-460.0,0.0003041,7]
[370309971,1751946651038,-460.0,0.0003041,7]
[370309972,1751946651047,-460.0,0.0003041,7]
[370309973,1751946651057,-246.05002721,0.0003041,7]
[370309974,1751946651069,-271.58997279,0.0003041,7]
[370309975,1751946651078,-460.0,0.0003041,7]
[370309976,1751946651087,-460.0,0.0003041,7]
[370309977,1751946651096,-460.0,0.0003041,7]
[370309978,1751946651105,-699.63,0.0003041,7]
[370309979,1751946651115,-460.0,0.0003041,7]
[370309980,1751946651123,-595.24,0.0003041,7]
[370309981,1751946651133,-460.0,0.0003041,7]
[370309982,1751946651143,-601.01,0.0003041,7]
[370309983,1751946651154,-460.0,0.0003041,7]
[370309984,1751946651163,-460.0,0.0003041,7]
[370309985,1751946651172,-460.0,0.0003041,7]
[370309986,1751946651183,-460.0,0.0003041,7]
[370309987,1751946651193,-659.37,0.0003041,7]
[370309988,1751946651202,-76.79202562,0.0003041,7]
[370309989,1751946651213,-550.16797438,0.0003041,7]
[370309990,1751946651223,-1773.08,0.0003041,7]
[370309991,1751946651233,-460.0,0.0003041,7]
[370309992,1751946651244,-151.0,0.0003041,7]
[370309993,1751946651253,-460.0,0.0003041,7]
[370309994,1751946651263,-460.0,0.0003041,7]
[370309995,1751946651271,-151.0,0.0003041,7]
[370309996,1751946651282,-460.0,0.0003041,7]
[370309997,1751946651293,-512.98,0.0003041,7]
[370309998,1751946651303,-677.08,0.0003041,7]
[370309999,1751946651312,-460.0,0.0003041,7]
[370310000,1751946651322,-460.0,0.0003041,7]
[370310001,1751946651331,-460.0,0.0003041,7]
[370310002,1751946651342,-460.0,0.0003041,7]
[370310003,1751946651352,-554.28,0.0003041,7]
[370310004,1751946651362,-460.0,0.0003041,7]
[370310005,1751946651371,-460.0,0.0003041,7]
[370310006,1751946651381,-510.27,0.0003041,7]
[370310007,1751946651391,-460.0,0.0003041,7]
[370310008,1751946651401,-708.22,0.0003041,7]
[370310009,1751946651410,-460.0,0.0003041,7]
[370310010,1751946651420,-460.0,0.0003041,7]
[370310011,1751946651430,-460.0,0.0003041,7]
[370310012,1751946651440,-460.0,0.0003041,7]
[370310013,1751946651451,-460.0,0.0003041,7]
[370310014,1751946651460,-151.0,0.0003041,7]
[370310015,1751946651470,-460.0,0.0003041,7]
[370310016,1751946651479,-460.0,0.0003041,7]
[370310017,1751946651488,-460.0,0.0003041,7]
[370310018,1751946651498,-460.0,0.0003041,7]
[370310019,1751946651508,-169.81542029,0.0003041,7]
[370310020,1751946651519,-460.0,0.0003041,7]
[370310021,1751946651529,-499.58,0.0003041,7]
[370310022,1751946651538,-460.0,0.0003041,7]
[370310023,1751946651548,-660.62,0.0003041,7]
[370310024,1751946651557,-708.67,0.0003041,7]
[370310025,1751946651567,-460.0,0.0003041,7]
[370310026,1751946651577,-460.0,0.0003041,7]
[370310027,1751946651586,-460.0,0.0003041,7]
[370310028,1751946651596,-490.0,0.0003041,7]
[370310029,1751946651606,-460.0,0.0003041,7]
[370310030,1751946651615,-460.0,0.0003041,7]
[370310031,1751946651625,-460.0,0.0003041,7]
[370310032,1751946651634,-2.21138507,0.0003041,7]
[370310033,1751946651654,-457.78861493,0.0003041,7]
[370310034,1751946651664,-297.624128,0.0003041,7]
[370310035,1751946651674,-460.0,0.0003041,7]
[370310036,1751946651684,-151.0,0.0003041,7]
[370310037,1751946651693,-646.58,0.0003041,7]
[370310038,1751946651704,-297.624128,0.0003041,7]
[370310039,1751946651713,-553.86,0.0003041,7]
[370310040,1751946651724,-562.17,0.0003041,7]
[370310041,1751946651734,-151.0,0.0003041,7]
[370310042,1751946651743,-460.0,0.0003041,7]
[370310043,1751946651754,-460.0,0.0003041,7]
[370310044,1751946651765,-195.38149588,0.0003041,7]
[370310045,1751946651780,-264.61850412,0.0003041,7]
[370310046,1751946651790,-151.0,0.0003041,7]
[370310047,1751946651799,-319.09149588,0.0003041,7]
[370310048,1751946651815,-219.02850412,0.0003041,7]
[370310049,1751946651825,-460.0,0.0003041,7]
[370310050,1751946651834,-460.0,0.0003041,7]
[370310051,1751946651843,-460.0,0.0003041,7]
[370310052,1751946651852,-460.0,0.0003041,7]
[370310053,1751946651861,-507.1423234,0.0003041,7]
[370310054,1751946651870,-460.0,0.0003041,7]
[370310055,1751946651879,-151.0,0.0003041,7]
[370310056,1751946651888,-460.0,0.0003041,7]
[370310057,1751946651898,-460.0,0.0003041,7]
[370310058,1751946651907,-460.0,0.0003041,7]
[370310059,1751946651916,-460.0,0.0003041,7]
[370310060,1751946651926,-460.0,0.0003041,7]
[370310061,1751946651935,-651.35,0.0003041,7]
[370310062,1751946651944,-661.67,0.0003041,7]
[370310063,1751946651954,-521.20634437,0.0003041,7]
[370310064,1751946651964,-494.61438906,0.0003041,7]
[370310065,1751946651973,-460.0,0.0003041,7]
[370310066,1751946651984,-652.55,0.0003041,7]
[370310067,1751946651994,-460.0,0.0003041,7]
[370310068,1751946652005,-380.97746203,0.0003041,7]
[370310069,1751946652015,-460.0,0.0003041,7]
[370310070,1751946652025,-460.0,0.0003041,7]
[370310071,1751946652035,-460.0,0.0003041,7]
[370310072,1751946652046,-461.74,0.0003041,7]
[370310073,1751946652056,-460.0,0.0003041,7]
[370310074,1751946652066,-581.04,0.0003041,7]
[370310075,1751946652075,-395.73,0.0003041,7]
[370310076,1751946652085,-622.49,0.0003041,7]
[370310077,1751946652095,-460.0,0.0003041,7]
[370310078,1751946652104,-460.0,0.0003041,7]
[370310079,1751946652113,-638.14,0.0003041,7]
[370310080,1751946652124,-460.0,0.0003041,7]
[370310081,1751946652135,-460.0,0.0003041,7]
[370310082,1751946652145,-460.0,0.0003041,7]
[370310083,1751946652154,-460.0,0.0003041,7]
[370310084,1751946652164,-460.0,0.0003041,7]
[370310085,1751946652173,-460.0,0.0003041,7]
[370310086,1751946652184,-460.0,0.0003041,7]
[370310087,1751946652193,-460.0,0.0003041,7]
[370310088,1751946652202,-460.0,0.0003041,7]
[370310089,1751946652212,-460.0,0.0003041,7]
[370310090,1751946652223,-496.02158284,0.0003041,7]
[370310091,1751946652234,-460.0,0.0003041,7]
[370310092,1751946652244,-460.0,0.0003041,7]
[370310093,1751946652254,-460.0,0.0003041,7]
[370310094,1751946652263,-460.0,0.0003041,7]
[370310095,1751946652272,-460.0,0.0003041,7]
[370310096,1751946652283,-460.0,0.0003041,7]
[370310097,1751946652292,-151.0,0.0003041,7]
[370310098,1751946652301,-151.0,0.0003041,7]
[370310099,1751946652311,-527.57206835,0.0003041,7]
[370310100,1751946652321,-460.0,0.0003041,7]
[370310101,1751946652331,-460.0,0.0003041,7]
[370310102,1751946652342,-460.0,0.0003041,7]
[370310103,1751946652351,-460.0,0.0003041,7]
[370310104,1751946652363,-151.0,0.0003041,7]
[370310105,1751946652374,-859.81,0.0003041,7]
[370310106,1751946652384,-460.0,0.0003041,7]
[370310107,1751946652393,-460.0,0.0003041,7]
[370310108,1751946652403,-460.0,0.0003041,7]
[370310109,1751946652412,-557.41137974,0.0003041,7]
[370310110,1751946652421,-460.0,0.0003041,7]
[370310111,1751946652431,-460.0,0.0003041,7]
[370310112,1751946652441,-460.0,0.0003041,7]
[370310113,1751946652451,-460.0,0.0003041,7]
[370310114,1751946652460,-523.00209788,0.0003041,7]
[370310115,1751946652470,-151.0,0.0003041,7]
[370310116,1751946652479,-1350.32,0.0003041,7]
[370310117,1751946652488,-152.025612,0.0003041,7]
[370310118,1751946652497,-526.03732251,0.0003041,7]
[370310119,1751946652506,-460.0,0.0003041,7]
[370310120,1751946652516,-151.0,0.0003041,7]
[370310121,1751946652524,-1185.19,0.0003041,7]
[370310122,1751946652534,-460.0,0.0003041,7]
[370310123,1751946652544,-460.0,0.0003041,7]
[370310124,1751946652553,-473.59171118,0.0003041,7]
[370310125,1751946652562,-460.0,0.0003041,7]
[370310126,1751946652572,-749.0,0.0003041,7]
[370310127,1751946652581,-460.0,0.0003041,7]
[370310128,1751946652591,-591.28,0.0003041,7]
[370310129,1751946652600,-460.0,0.0003041,7]
[370310130,1751946652609,-581.69,0.0003041,7]
[370310131,1751946652618,-577.77549994,0.0003041,7]
[370310132,1751946652628,-460.0,0.0003041,7]
[370310133,1751946652637,-460.0,0.0003041,7]
[370310134,1751946652646,-496.55614201,0.0003041,7]
[370310135,1751946652660,-460.0,0.0003041,7]
[370310136,1751946652668,-690.57,0.0003041,7]
[370310137,1751946652678,-704.99,0.0003041,7]
[370310138,1751946652687,-219.76614363,0.0003041,7]
[370310139,1751946652696,-492.39,0.0003041,7]
[370310140,1751946652706,-460.0,0.0003041,7]
[370310141,1751946652715,-474.29,0.0003041,7]
[370310142,1751946652724,-460.0,0.0003041,7]
[370310143,1751946652733,-460.0,0.0003041,7]
[370310144,1751946652743,-151.0,0.0003041,7]
[370310145,1751946652752,-460.0,0.0003041,7]
[370310146,1751946652761,-151.0,0.0003041,7]
[370310147,1751946652770,-460.0,0.0003041,7]
[370310148,1751946652780,-460.0,0.0003041,7]
[370310149,1751946652789,-526.18328646,0.0003041,7]
[370310150,1751946652798,-490.0,0.0003041,7]
[370310151,1751946652808,-151.0,0.0003041,7]
[370310152,1751946652818,-460.0,0.0003041,7]
[370310153,1751946652827,-460.0,0.0003041,7]
[370310154,1751946652836,-460.0,0.0003041,7]
[370310155,1751946652846,-1115.99,0.0003041,7]
[370310156,1751946652855,-151.0,0.0003041,7]
[370310157,1751946652864,-224.64,0.0003041,7]
[370310158,1751946652873,-515.2,0.0003041,7]
[370310159,1751946652882,-523.58886736,0.0003041,7]
[370310160,1751946652892,-460.0,0.0003041,7]
[370310161,1751946652900,-460.0,0.0003041,7]
[370310162,1751946652910,-596.32071816,0.0003041,7]
[370310163,1751946652919,-460.0,0.0003041,7]
[370310164,1751946652929,-460.0,0.0003041,7]
[370310165,1751946652938,-460.0,0.0003041,7]
[370310166,1751946652947,-460.0,0.0003041,7]
[370310167,1751946652957,-460.0,0.0003041,7]
[370310168,1751946652966,-816.46,0.0003041,7]
[370310169,1751946652975,-460.0,0.0003041,7]
[370310170,1751946652985,-460.0,0.0003041,7]
[370310171,1751946652994,-460.0,0.0003041,7]
[370310172,1751946653003,-460.0,0.0003041,7]
[370310173,1751946653012,-460.0,0.0003041,7]
[370310174,1751946653022,-153.066344,0.0003041,7]
[370310175,1751946653032,-460.0,0.0003041,7]
[370310176,1751946653042,-460.0,0.0003041,7]
[370310177,1751946653051,-824.26,0.0003041,7]
[370310178,1751946653061,-460.0,0.0003041,7]
[370310179,1751946653070,-151.0,0.0003041,7]
[370310180,1751946653080,-523.53,0.0003041,7]
[370310181,1751946653089,-2637.37,0.0003041,7]
[370310182,1751946653099,-460.0,0.0003041,7]
[370310183,1751946653109,-460.0,0.0003041,7]
[370310184,1751946653118,-688.22,0.0003041,7]
[370310185,1751946653127,-630.18,0.0003041,7]
[370310186,1751946653137,-460.0,0.0003041,7]
[370310187,1751946653146,-14270.54,0.0003041,7]
[370310188,1751946653156,-1119.52,0.0003041,7]
[370310189,1751946653166,-460.0,0.0003041,7]
[370310190,1751946653175,-460.0,0.0003041,7]
[370310191,1751946653185,-460.0,0.0003041,7]
[370310192,1751946653194,-460.0,0.0003041,7]
[370310193,1751946653203,-460.0,0.0003041,7]
[370310194,1751946653213,-795.42,0.0003041,7]
[370310195,1751946653223,-460.0,0.0003041,7]
[370310196,1751946653233,-336.60185144,0.0003041,60]
[370310197,1751946653243,-460.0,0.0003041,7]
[370310198,1751946653252,-460.0,0.0003041,7]
[370310199,1751946653261,-375.5093998,0.0003041,7]
[370310200,1751946653271,-460.0,0.0003041,7]
[370310201,1751946653280,-885.9,0.0003041,7]
[370310202,1751946653290,-151.0,0.0003041,7]
[370310203,1751946653299,-1226.26,0.0003041,7]
[370310204,1751946653309,-460.0,0.0003041,7]
[370310205,1751946653319,-460.0,0.0003041,7]
[370310206,1751946653329,-1709.78,0.0003041,7]
[370310207,1751946653339,-729.02,0.0003041,7]
[370310208,1751946653348,-460.0,0.0003041,7]
[370310209,1751946653358,-520.0,0.0003041,7]
[370310210,1751946653367,-460.0,0.0003041,7]
[370310211,1751946653377,-274.63547242,0.0003041,7]
[370310212,1751946653386,-460.0,0.0003041,7]
[370310213,1751946653397,-460.0,0.0003041,7]
[370310214,1751946653406,-613.012057,0.0003041,7]
[370310215,1751946653416,-520.0,0.0003041,7]
[370310216,1751946653426,-151.0,0.0003041,7]
[370310217,1751946653436,-151.0,0.0003041,7]
[370310218,1751946653446,-520.9291045,0.0003041,7]
[370310219,1751946653455,-613.012057,0.0003041,7]
[370310220,1751946653466,-830.56,0.0003041,7]
[370310221,1751946653477,-1925.21,0.0003041,7]
[370310222,1751946653488,-1620.67,0.0003041,7]
[370310223,1751946653500,-460.0,0.0003041,7]
[370310224,1751946653510,-490.0,0.0003041,7]
[370310225,1751946653521,-1074.27,0.0003041,7]
[370310226,1751946653533,-185.4507531,0.0003041,7]
[370310227,1751946653543,-152.300435,0.0003041,7]
[370310228,1751946653554,-525.78,0.0003041,7]
[370310229,1751946653567,-1246.46,0.0003041,7]
[370310230,1751946653578,-460.0,0.0003041,7]
[370310231,1751946653589,-469.5,0.0003041,7]
[370310232,1751946653600,-478.72,0.0003041,7]
[370310233,1751946653610,-2079.55,0.0003041,7]
[370310234,1751946653620,-736.28,0.0003041,7]
[370310235,1751946653632,-460.0,0.0003041,7]
[370310236,1751946653643,-460.0,0.0003041,7]